bitfinex/quotes_ETHUSD_20240927
["timestamp","ask_amount","ask_price","bid_price","bid_amount"]
[1727435075967,0.4519,2650.8,2650.6,0.55]
[1727435075968,1.24258665,2650.8,2650.6,0.55]
[1727435076264,0.79068665,2650.7,2650.6,0.55]
[1727435077467,0.79068665,2650.7,2650.6,6.76769009]
[1727435077644,0.79068665,2650.8,2650.7,4.32258]
[1727435077964,0.00745018,2650.9,2650.8,4.32244]
[1727435078129,0.79804205,2650.9,2650.8,5.45959801]
[1727435078330,0.79804521,2650.9,2650.8,5.45959801]
[1727435078569,0.00745018,2650.9,2650.8,5.45959801]
[1727435079037,0.79800817,2650.9,2650.8,5.45959801]
[1727435079928,0.79800817,2650.9,2650.8,1.68715801]
[1727435080261,0.79800817,2650.9,2650.7,4.3225]
[1727435080954,0.79800817,2650.9,2650.8,4.32244]
[1727435081671,0.79800817,2650.9,2650.8,0.55]
[1727435083300,0.79800817,2650.9,2650.7,8.09503]
[1727435083571,0.79800817,2650.9,2650.7,0.55]
[1727435083873,0.79055799,2650.8,2650.6,0.55]
[1727435084044,0.79055799,2650.8,2650.6,4.32269]
[1727435084539,0.79055799,2650.8,2650.6,5.38316797]
[1727435085235,0.79055799,2650.8,2650.6,1.61047797]
[1727435085432,0.79055799,2650.8,2650.7,4.32258]
[1727435088238,0.00745018,2650.9,2650.8,0.55]
[1727435088682,0.00745018,2650.9,2650.8,3.77244]
[1727435088683,0.79797046,2650.9,2650.8,3.77244]
[1727435088850,0.79797046,2650.9,2650.8,4.32244]
[1727435089251,0.00745018,2650.9,2650.8,4.32244]
[1727435089452,0.79808249,2650.9,2650.8,4.32244]
[1727435089653,0.79808274,2650.9,2650.7,0.55]
[1727435090170,0.79808274,2650.9,2650.8,4.32244]
[1727435090474,0.79808274,2650.9,2650.8,0.55]
[1727435091233,0.00745018,2650.9,2650.8,0.55]
[1727435092176,1.19348914,2650.9,2650.8,0.55]
[1727435094138,1.19348914,2650.9,2650.8,4.32244]
[1727435094340,1.19348914,2650.9,2650.7,0.55]
[1727435094798,0.79146179,2650.8,2650.7,4.32247]
[1727435095069,0.79146179,2650.8,2650.7,5.30815291]
[1727435095271,1.18603896,2650.8,2650.7,5.30815291]
[1727435095446,1.19348914,2650.9,2650.7,5.30815291]
[1727435096080,1.19348914,2650.9,2650.8,6.08418912]
[1727435096235,0.79198564,2650.9,2650.8,7.93017043]
[1727435096436,0.79198564,2651.1,2651.0,8.10026]
[1727435096680,0.00745018,2651.2,2651.1,4.32201]
[1727435096681,0.79943582,2651.2,2651.1,4.32201]
[1727435096854,0.79943582,2651.2,2651.1,5.38541191]
[1727435097036,0.00745018,2651.2,2651.1,5.38541191]
[1727435097237,0.79943582,2651.2,2651.1,5.38541191]
[1727435097664,0.79198564,2651.2,2651.1,5.38541191]
[1727435097865,0.79198564,2651.2,2651.1,6.17581191]
[1727435098192,1.19552442,2651.4,2651.3,4.32173]
[1727435098482,0.00745018,2651.4,2651.3,4.32173]
[1727435098772,1.19552442,2651.4,2651.3,4.39715623]
[1727435099073,0.00745018,2651.4,2651.3,4.32173]
[1727435099251,0.79930135,2651.4,2651.3,5.60974231]
[1727435099449,0.79930135,2651.4,2651.3,5.68516913]
[1727435099656,0.79185117,2651.5,2651.3,6.47556913]
[1727435099984,0.79185117,2651.5,2651.4,6.08333912]
[1727435100183,0.79185117,2651.5,2651.4,8.80008907]
[1727435100386,0.79185117,2651.6,2651.5,4.32145]
[1727435101471,0.79185117,2651.7,2651.6,4.3213]
[1727435101783,0.79185117,2651.7,2651.6,7.71733303]
[1727435101983,0.79930135,2651.9,2651.8,3.77102]
[1727435102138,0.79930135,2651.9,2651.8,6.08276912]
[1727435102541,0.00745018,2651.9,2651.8,6.08276912]
[1727435103581,0.00745018,2651.9,2651.8,6.60036139]
[1727435103740,0.00745018,2651.9,2651.8,0.55]
[1727435104176,0.00745018,2651.9,2651.8,6.1581835]
[1727435104377,0.00745018,2651.9,2651.8,6.90937876]
[1727435104591,0.00745018,2652.1,2652.0,3.77073]
[1727435104766,0.00745018,2652.1,2652.0,6.83367912]
[1727435104966,0.79185117,2652.4,2652.2,3.7704]
[1727435105291,0.00745018,2652.5,2652.3,4.32031]
[1727435105670,0.00745018,2652.5,2652.3,0.55]
[1727435105989,0.00745018,2652.5,2652.2,0.55]
[1727435106145,0.00745018,2652.5,2652.2,4.32043]
[1727435106643,0.00745018,2652.5,2652.2,6.08217912]
[1727435106953,0.00745018,2652.5,2652.4,0.55]
[1727435112042,0.00745018,2652.5,2652.4,1.15819591]
[1727435112244,0.00745018,2652.5,2652.4,7.48861503]
[1727435112484,0.00745018,2652.8,2652.7,4.31974]
[1727435112690,0.00745018,2652.8,2652.7,8.128713]
[1727435112980,0.45935018,2653.3,2652.9,3.76945]
[1727435113143,0.45935018,2653.3,2653.0,0.55]
[1727435113343,0.45935018,2653.3,2653.0,4.31924]
[1727435113881,0.45935018,2653.3,2653.0,0.55]
[1727435114089,0.45935018,2653.3,2653.0,4.31927]
[1727435114385,0.45935018,2653.3,2653.0,0.55]
[1727435114581,4.22824018,2653.3,2652.8,0.55]
[1727435114746,4.22824018,2653.3,2652.8,1.3877123]
[1727435114747,7.99723018,2653.3,2652.8,1.3877123]
[1727435114945,0.00745018,2653.1,2652.8,1.3877123]
[1727435115184,0.00745018,2653.1,2653.0,0.55]
[1727435115683,0.00745018,2653.1,2652.7,0.55]
[1727435115684,3.76932,2653.0,2652.7,0.55]
[1727435115891,0.00745018,2652.8,2652.4,11.11016]
[1727435116085,0.00745018,2652.8,2652.5,1.38856688]
[1727435116384,0.00745018,2652.6,2652.5,1.38856688]
[1727435117188,0.00745018,2652.8,2652.6,0.55]
[1727435118589,0.00745018,2652.8,2652.6,4.31984]
[1727435118891,0.00745018,2652.8,2652.7,5.14554]
[1727435119253,0.00745018,2653.2,2653.0,3.76926]
[1727435119488,0.00745018,2653.2,2653.1,4.31917]
[1727435121293,0.00745018,2653.2,2653.1,0.55]
[1727435123263,0.00745018,2653.2,2652.7,4.59546]
[1727435123264,0.00745018,2653.2,2652.8,0.55]
[1727435123467,0.00745018,2653.2,2653.0,3.76929]
[1727435123787,0.00745018,2653.2,2652.8,4.3196]
[1727435123788,0.00745018,2653.2,2652.8,4.3195]
[1727435123953,0.00745018,2653.2,2653.0,0.55]
[1727435124849,3.77655018,2653.2,2652.8,0.55]
[1727435125091,0.00745018,2653.0,2652.8,0.55]
[1727435125587,0.00745018,2653.0,2652.8,4.31958]
[1727435125791,0.00745018,2653.0,2652.9,0.431958]
[1727435126152,0.00745018,2653.0,2652.9,4.201408]
[1727435126347,0.00745018,2653.0,2652.9,4.751408]
[1727435127151,0.00745018,2653.0,2652.9,5.561308]
[1727435128286,0.00745018,2653.0,2652.9,8.561308]
[1727435128491,0.00745018,2653.3,2653.0,4.31921]
[1727435128971,0.00745018,2653.3,2653.1,3.76906]
[1727435129164,0.00745018,2653.3,2653.1,5.0020968]
[1727435133299,0.00745018,2653.3,2653.2,4.31903]
[1727435136794,0.00745018,2653.3,2653.2,5.07153]
[1727435140594,0.00745018,2653.3,2653.2,0.55]
[1727435141213,0.00745018,2653.3,2653.2,4.31903]
[1727435141429,0.45935018,2653.3,2653.2,1.55747268]
[1727435141918,0.45935018,2653.3,2653.2,5.32650268]
[1727435142283,0.00745018,2653.3,2653.2,5.32650268]
[1727435143787,0.00745018,2653.3,2653.2,1.55747268]
[1727435143990,0.00745018,2653.3,2653.2,0.55]
[1727435144208,0.00745018,2653.3,2653.1,0.55]
[1727435145025,0.00745018,2653.3,2653.1,4.31909]
[1727435146017,0.00745018,2653.3,2653.1,0.55]
[1727435146218,0.00745018,2653.3,2653.2,5.09763]
[1727435146395,0.00745018,2653.3,2653.2,5.99184692]
[1727435152405,0.45935018,2653.3,2652.9,4.997318]
[1727435152605,0.79015631,2653.2,2653.0,3.55]
[1727435152841,0.79760649,2653.1,2653.0,3.55]
[1727435153543,0.79760649,2653.1,2653.0,7.31931]
[1727435153848,0.79760649,2653.1,2653.0,3.55]
[1727435154343,0.79760649,2653.1,2653.0,7.31931]
[1727435155357,0.00745018,2653.1,2653.0,8.428177]
[1727435155646,0.79015631,2653.1,2653.0,8.428177]
[1727435156049,0.79067996,2653.1,2653.0,8.428177]
[1727435156404,1.18807424,2653.1,2653.0,4.31931]
[1727435156610,1.19552442,2653.2,2653.0,4.31931]
[1727435156837,0.79088692,2653.1,2653.0,4.31931]
[1727435157518,1.18807424,2653.1,2653.0,4.31931]
[1727435158059,0.00745018,2653.2,2653.1,4.31917]
[1727435158224,1.1941061,2653.2,2653.1,4.31917]
[1727435158422,0.00745018,2653.2,2653.1,4.31917]
[1727435158621,1.59154916,2653.2,2653.1,4.31917]
[1727435158832,1.19426715,2653.2,2653.1,4.31917]
[1727435160831,1.19423632,2653.2,2653.1,4.31917]
[1727435161361,0.00745018,2653.2,2653.1,0.55]
[1727435161655,1.59154916,2653.2,2653.1,0.55]
[1727435163216,1.59154916,2653.2,2653.1,4.31917]
[1727435163936,1.59055178,2653.2,2653.1,4.31917]
[1727435164456,0.00745018,2653.2,2653.1,4.31917]
[1727435164675,1.59089456,2653.2,2653.1,4.31917]
[1727435170561,1.59089456,2653.2,2653.1,5.128009]
[1727435170760,0.00745018,2653.2,2653.1,1.358839]
[1727435170972,0.00745018,2653.2,2652.8,7.53901]
[1727435171275,1.18768438,2653.0,2652.9,0.55]
[1727435171489,0.00745018,2653.0,2652.9,0.55]
[1727435171789,1.19525479,2653.0,2652.9,0.55]
[1727435172082,0.00745018,2653.0,2652.9,0.55]
[1727435172380,0.00745018,2653.0,2652.9,4.31945]
[1727435172579,0.00745018,2653.0,2652.9,0.55]
[1727435172780,1.19525083,2653.0,2652.9,0.55]
[1727435173140,1.59102936,2653.0,2652.9,4.31945]
[1727435174175,1.59102936,2653.0,2652.9,0.55]
[1727435174892,1.59102936,2653.0,2652.9,4.31945]
[1727435175065,1.59102936,2653.0,2652.9,0.55]
[1727435175707,0.00745018,2653.0,2652.9,0.55]
[1727435176299,1.59096631,2653.0,2652.9,0.55]
[1727435177388,1.59096631,2653.0,2652.7,3.76974]
[1727435177713,1.58326599,2652.8,2652.7,0.55]
[1727435177863,1.59071617,2652.8,2652.7,4.31974]
[1727435178511,1.19476171,2652.8,2652.7,4.31974]
[1727435182207,0.00745018,2652.8,2652.7,4.31974]
[1727435182712,1.19476171,2652.8,2652.7,4.31974]
[1727435183385,0.00745018,2652.8,2652.7,4.31974]
[1727435185176,1.19476171,2652.8,2652.6,0.55]
[1727435185516,1.19476171,2652.8,2652.3,0.7677]
[1727435185517,1.63880301,2652.7,2652.0,0.7677]
[1727435185813,1.18694818,2652.1,2651.8,4.53865]
[1727435186024,1.18694818,2652.1,2651.4,12.87003065]
[1727435186025,0.00745018,2652.0,2651.9,0.453865]
[1727435186223,1.64662312,2652.0,2651.6,3.7712]
[1727435186427,0.79094776,2651.9,2651.7,3.77114]
[1727435186626,0.79094776,2651.8,2651.7,3.77114]
[1727435186834,0.79094776,2651.8,2651.5,0.8264]
[1727435186835,0.79094776,2651.8,2651.5,3.77144]
[1727435186986,0.79839794,2651.8,2651.5,0.754294]
[1727435187187,0.79094776,2651.7,2651.4,3.7715]
[1727435187405,2.55685859,2651.8,2651.2,7.54357]
[1727435187725,1.25029794,2651.6,2651.2,3.77178]
[1727435187894,0.00745018,2651.4,2651.0,8.32924]
[1727435188094,0.00745018,2651.4,2651.1,1.00877007]
[1727435188622,0.00745018,2651.4,2651.0,4.55716]
[1727435188828,0.00745018,2651.4,2651.1,0.55]
[1727435189738,0.00745018,2651.4,2651.0,3.77206]
[1727435190709,0.00745018,2651.4,2651.0,3.77205]
[1727435190913,0.00745018,2651.4,2651.1,0.55]
[1727435191806,0.00745018,2651.4,2651.1,4.32201]
[1727435192126,0.00745018,2651.4,2651.1,0.55]
[1727435194130,0.00745018,2651.4,2651.2,4.52794]
[1727435195702,0.00745018,2651.4,2651.1,0.55]
[1727435195902,0.00745018,2651.4,2651.1,4.32201]
[1727435196524,0.00745018,2651.4,2651.1,5.210063]
[1727435196717,0.00745018,2651.4,2651.3,4.32173]
[1727435196915,0.00745018,2651.4,2651.3,8.15885576]
[1727435197120,0.00745018,2651.4,2651.3,8.08343]
[1727435198060,0.00745018,2651.9,2651.4,3.0]
[1727435198257,0.00745018,2651.9,2651.8,4.32102]
[1727435200228,0.00745018,2651.9,2651.8,0.55]
[1727435200926,0.00745018,2651.9,2651.5,3.77138]
[1727435201125,0.00745018,2651.9,2651.5,0.55]
[1727435201654,0.00745018,2651.9,2651.5,4.32137]
[1727435202410,0.4519,2651.8,2651.5,0.55]
[1727435202742,0.00745018,2651.7,2651.5,0.55]
[1727435203330,0.00745018,2651.7,2651.5,4.32144]
[1727435203949,0.00745018,2651.7,2651.5,0.55]
[1727435206313,0.00745018,2651.7,2651.5,4.32142]
[1727435207760,0.00745018,2651.7,2651.5,0.55]
[1727435208963,0.00745018,2651.7,2651.5,4.32142]
[1727435209723,0.00745018,2651.7,2651.5,0.55]
[1727435211292,0.00745018,2651.7,2651.5,4.32142]
[1727435212393,0.00745018,2651.7,2651.4,3.77159]
[1727435212692,0.00745018,2651.7,2651.4,7.54311]
[1727435213346,0.00745018,2651.7,2651.5,3.77144]
[1727435214247,0.00745018,2651.7,2651.2,3.77179]
[1727435214493,3.77862018,2651.7,2651.3,3.77164]
[1727435214696,0.00745018,2651.4,2651.3,3.77164]
[1727435219897,0.00745018,2651.4,2651.2,0.55]
[1727435220193,0.00745018,2651.4,2651.3,3.77173]
[1727435220750,0.00745018,2651.4,2651.2,4.32186]
[1727435221794,0.00745018,2651.4,2651.3,3.77173]
[1727435222449,0.00745018,2651.4,2651.3,4.54873]
[1727435222895,0.4519,2651.3,2651.0,3.0]
[1727435223097,0.00745018,2651.1,2651.0,6.77216]
[1727435224553,0.00745018,2651.1,2650.9,3.77222]
[1727435226155,0.00745018,2651.1,2651.0,3.77216]
[1727435227591,0.00745018,2651.1,2651.0,4.526598]
[1727435227965,0.00745018,2651.1,2651.0,5.302898]
[1727435228295,0.00745018,2651.1,2651.0,7.61319297]
[1727435228496,1.18727294,2651.6,2651.5,3.77145]
[1727435228497,0.00745018,2651.6,2651.5,3.77145]
[1727435228797,0.00745018,2651.6,2651.5,5.866153]
[1727435229167,0.00745018,2651.6,2651.5,8.866153]
[1727435229756,1.58326599,2652.6,2651.6,3.55]
[1727435229757,0.00745018,2652.0,2651.6,3.55]
[1727435229956,0.00745018,2652.2,2652.1,3.77059]
[1727435230180,0.00745018,2652.2,2652.1,4.32059]
[1727435233483,0.00745018,2652.2,2652.1,4.39599511]
[1727435233707,0.00745018,2652.4,2652.3,4.32031]
[1727435235894,0.00745018,2652.4,2652.3,0.55]
[1727435236419,0.00745018,2652.4,2652.3,4.32031]
[1727435237807,0.00745018,2652.4,2652.2,3.77038]
[1727435238014,0.00745018,2652.4,2652.3,0.55]
[1727435239124,0.00745018,2652.4,2652.0,3.77068]
[1727435239429,0.79839794,2652.4,2652.1,0.55]
[1727435240228,0.00745018,2652.4,2652.1,0.55]
[1727435241890,0.79839794,2652.4,2652.1,0.55]
[1727435243303,5.97310803,2652.4,2652.0,0.55]
[1727435243487,3.77790018,2652.2,2651.8,4.32102]
[1727435243688,4.56884794,2652.2,2651.8,4.32102]
[1727435244327,4.56884794,2652.2,2651.8,0.55]
[1727435244496,0.79839794,2652.2,2651.7,3.55]
[1727435244699,0.79839794,2652.2,2651.9,0.55]
[1727435245522,0.79839794,2652.2,2651.9,4.32085]
[1727435246090,0.00745018,2652.2,2651.9,4.32085]
[1727435246890,0.00745018,2652.2,2651.8,4.32101]
[1727435246891,0.79839794,2652.2,2651.8,4.32101]
[1727435247086,0.79839794,2652.2,2651.9,3.77086]
[1727435247293,0.00745018,2652.2,2651.9,3.77086]
[1727435247728,0.00745018,2652.2,2652.0,3.7707]
[1727435248225,0.00745018,2652.2,2651.8,0.55]
[1727435248388,0.00745018,2652.2,2651.8,1.7420314]
[1727435250215,0.00745018,2652.2,2651.8,0.55]
[1727435250539,0.00745018,2652.2,2651.7,3.55]
[1727435251430,4.56125776,2652.3,2651.7,3.55]
[1727435252420,4.56125776,2652.3,2651.7,5.30928475]
[1727435252650,8.33165776,2652.3,2651.7,5.30928475]
[1727435252847,0.00745018,2652.2,2651.7,6.29612623]
[1727435253235,4.56891794,2652.2,2651.7,6.29612623]
[1727435253432,3.77797018,2652.2,2651.7,5.30928475]
[1727435253622,4.56891794,2652.2,2651.7,5.30928475]
[1727435253825,4.56891794,2652.2,2651.7,0.55]
[1727435254143,3.77797018,2652.2,2651.7,0.55]
[1727435254865,0.00745018,2652.2,2651.9,0.55]
[1727435255045,0.79839794,2652.2,2651.9,0.55]
[1727435255209,0.79839794,2652.2,2651.8,0.55]
[1727435255409,0.00745018,2652.2,2651.8,0.55]
[1727435255642,0.79839794,2652.2,2651.8,0.55]
[1727435255826,0.00745018,2652.2,2651.8,0.55]
[1727435256245,3.77795018,2652.2,2651.8,4.53684247]
[1727435257956,4.56889794,2652.2,2651.8,4.53684247]
[1727435258127,3.77795018,2652.2,2651.8,4.53684247]
[1727435259121,3.77061,2652.1,2651.8,4.53684247]
[1727435259523,3.77790018,2652.2,2651.8,4.53684247]
[1727435259931,3.77063,2652.1,2651.8,4.53684247]
[1727435261358,3.77083,2652.0,2651.6,0.7879]
[1727435261568,3.77063,2652.1,2651.7,0.55]
[1727435261774,3.77063,2652.1,2651.2,7.34]
[1727435261775,4.22281,2651.9,2651.3,0.7672]
[1727435262064,0.00745018,2651.8,2651.3,0.7672]
[1727435262269,3.77857018,2651.8,2651.3,0.7672]
[1727435262640,3.77118,2651.7,2651.3,0.7672]
[1727435263049,0.00745018,2651.8,2651.4,0.55]
[1727435265524,0.00745018,2651.8,2651.2,16.64286475]
[1727435265525,0.4519,2651.7,2651.2,0.55]
[1727435265848,4.2235,2651.4,2650.9,0.754]
[1727435266050,0.00745018,2651.3,2650.9,0.754]
[1727435266565,0.00745018,2651.3,2650.8,7.5447]
[1727435266727,0.00745018,2651.3,2650.8,8.09786348]
[1727435266928,0.00745018,2651.3,2650.7,0.7866]
[1727435267167,3.77189,2651.2,2650.7,0.7866]
[1727435267411,0.79839794,2651.3,2650.8,3.7724]
[1727435267582,0.00745018,2651.1,2650.9,3.0]
[1727435269679,0.00745018,2651.1,2650.8,0.55]
[1727435270380,0.00745018,2650.9,2650.8,0.55]
[1727435270538,0.00745018,2650.9,2650.8,7.32244]
[1727435270735,0.00745018,2650.9,2650.5,0.8138]
[1727435270972,0.00745018,2650.9,2650.7,3.77248]
[1727435271193,0.00745018,2650.9,2650.6,0.55]
[1727435271194,0.45935018,2650.9,2650.6,0.55]
[1727435271497,0.45935018,2650.9,2650.6,4.32271]
[1727435271698,0.00745018,2650.9,2650.7,3.77251]
[1727435272472,0.00745018,2650.9,2650.8,3.77244]
[1727435272677,0.00745018,2650.9,2650.7,7.54499]
[1727435273075,0.00745018,2650.9,2650.8,3.77244]
[1727435273264,0.00745018,2650.9,2650.7,3.77248]
[1727435273467,0.00745018,2650.9,2650.7,7.54498]
[1727435274373,0.00745018,2650.9,2650.6,4.32268]
[1727435274559,0.00745018,2650.9,2650.7,3.77254]
[1727435274956,0.00745018,2650.9,2650.7,7.54504]
[1727435275183,0.00745018,2650.9,2650.7,3.77247]
[1727435275591,0.00745018,2650.9,2650.8,3.77244]
[1727435275800,0.00745018,2650.9,2650.7,3.77247]
[1727435276498,0.00745018,2650.9,2650.7,7.54497]
[1727435276696,0.00745018,2650.9,2650.8,3.77244]
[1727435276901,0.00745018,2650.9,2650.7,3.77247]
[1727435278711,0.00745018,2650.9,2650.8,3.77244]
[1727435279510,0.00745018,2650.9,2650.6,0.55]
[1727435279709,0.00745018,2650.9,2650.7,3.77244]
[1727435280014,0.00745018,2650.9,2650.8,3.77244]
[1727435284822,0.00745018,2650.9,2650.8,4.32244]
[1727435285497,0.00745018,2650.9,2650.8,5.213408]
[1727435289293,0.00745018,2650.9,2650.8,8.28884775]
[1727435289497,0.00745018,2650.9,2650.8,8.213408]
[1727435290022,0.00745018,2651.1,2650.9,0.55]
[1727435290197,0.00745018,2651.1,2651.0,3.77216]
[1727435290534,0.00745018,2651.1,2651.0,5.90548862]
[1727435302415,0.00745018,2651.1,2651.0,4.32216]
[1727435303705,0.00745018,2651.1,2651.0,4.39759806]
[1727435303905,0.00745018,2651.2,2651.1,4.32201]
[1727435304158,0.78877007,2651.6,2651.5,3.77145]
[1727435304159,0.00745018,2651.6,2651.5,3.77145]
[1727435304823,0.00745018,2651.6,2651.5,4.32145]
[1727435305040,0.00745018,2651.6,2651.5,5.09015]
[1727435305370,0.79622025,2651.9,2651.8,3.77102]
[1727435306032,0.00745018,2651.9,2651.8,3.77102]
[1727435306234,0.79778986,2651.9,2651.8,3.77102]
[1727435307136,1.19060528,2651.9,2651.8,3.77102]
[1727435307338,0.00745018,2651.9,2651.8,3.77102]
[1727435307556,1.19060528,2651.9,2651.8,3.77102]
[1727435308227,0.00745018,2651.9,2651.8,3.77102]
[1727435308466,1.19060528,2651.9,2651.8,3.77102]
[1727435309072,1.19060528,2651.9,2651.6,3.77119]
[1727435309367,0.79058029,2651.8,2651.7,4.32116]
[1727435312727,0.79803047,2651.9,2651.7,4.32116]
[1727435313171,0.79058029,2651.8,2651.7,4.32116]
[1727435313343,0.79803047,2651.9,2651.7,4.32116]
[1727435314866,0.79803047,2651.9,2651.7,0.55]
[1727435315069,0.79803047,2651.9,2651.8,3.77102]
[1727435316660,0.00745018,2651.9,2651.8,3.77102]
[1727435317503,0.79803047,2651.9,2651.8,3.77102]
[1727435318389,0.00745018,2651.9,2651.8,3.77102]
[1727435320288,0.00745018,2651.9,2651.7,4.32115]
[1727435320505,0.00745018,2651.9,2651.8,3.77102]
[1727435322887,0.79058029,2652.0,2651.8,3.77102]
[1727435323689,0.79058029,2652.0,2651.9,3.77088]
[1727435323943,0.79058029,2652.1,2652.0,3.77073]
[1727435324088,0.79058029,2652.1,2652.0,4.32073]
[1727435324089,0.00745018,2652.1,2652.0,4.32073]
[1727435324283,0.00745018,2652.1,2652.0,5.35047059]
[1727435324618,0.00745018,2652.2,2652.1,4.32059]
[1727435325206,0.00745018,2652.2,2652.0,1.02974059]
[1727435325384,1.24993047,2652.2,2651.9,0.55]
[1727435325734,1.24993047,2652.2,2651.6,5.059679]
[1727435325735,0.79058029,2652.0,2651.7,3.77115]
[1727435326229,0.00745018,2651.8,2651.7,4.32115]
[1727435326726,0.00745018,2651.8,2651.7,0.55]
[1727435326897,0.79058029,2652.0,2651.7,0.55]
[1727435328029,0.79058029,2651.9,2651.7,0.55]
[1727435328927,0.79058029,2651.9,2651.6,3.77119]
[1727435329134,0.79058029,2651.9,2651.7,0.55]
[1727435329644,0.79058029,2651.9,2651.7,3.77114]
[1727435330336,0.79033385,2651.9,2651.8,3.77102]
[1727435331846,0.79033385,2652.0,2651.9,3.77088]
[1727435332047,0.00745018,2652.0,2651.8,3.77102]
[1727435332206,0.79040025,2651.9,2651.8,3.77102]
[1727435335255,1.19060528,2652.0,2651.8,3.77102]
[1727435338224,1.1831551,2651.9,2651.8,3.77102]
[1727435338559,1.19060528,2652.0,2651.8,3.77102]
[1727435338858,1.1831551,2651.9,2651.8,3.77102]
[1727435341973,1.1831551,2651.9,2651.7,4.32113]
[1727435342270,0.7910289,2651.8,2651.7,4.32113]
[1727435344460,1.1831551,2651.9,2651.7,4.32113]
[1727435344664,1.1831551,2651.9,2651.8,3.77102]
[1727435344822,1.18707804,2651.9,2651.8,3.77102]
[1727435345223,0.00745018,2652.0,2651.9,5.07648]
[1727435345456,1.57754014,2652.1,2651.9,5.07648]
[1727435345457,1.18717809,2652.1,2652.0,4.32073]
[1727435345627,1.18717809,2652.2,2652.1,4.32059]
[1727435346244,1.58499032,2652.3,2652.1,4.32059]
[1727435346648,1.58499032,2652.3,2652.2,4.32045]
[1727435347163,1.19460792,2652.3,2652.2,4.32045]
[1727435349863,0.00745018,2652.3,2652.2,4.32045]
[1727435350476,1.19478425,2652.3,2652.2,4.32045]
[1727435353265,0.00745018,2652.3,2652.2,6.83254553]
[1727435353569,0.00745018,2652.3,2652.2,7.98132808]
[1727435353742,0.79868697,2652.3,2652.2,7.98132808]
[1727435353943,0.00745018,2652.3,2652.2,7.98132808]
[1727435354143,0.79871475,2652.3,2652.2,7.98132808]
[1727435354844,0.79126457,2652.3,2652.2,7.98132808]
[1727435355096,1.19478425,2652.5,2652.2,7.98132808]
[1727435355097,1.19478425,2652.5,2652.4,3.77017]
[1727435355281,0.7983708,2652.5,2652.4,5.49530581]
[1727435355588,0.79837295,2652.5,2652.4,5.49530581]
[1727435356079,0.79837295,2652.5,2652.4,4.94530581]
[1727435356888,0.79092277,2652.5,2652.4,5.49530581]
[1727435357042,0.79837295,2652.5,2652.4,5.49530581]
[1727435359390,0.00745018,2652.5,2652.4,5.49530581]
[1727435359599,0.79837295,2652.5,2652.4,5.49530581]
[1727435359883,0.00745018,2652.5,2652.4,5.49530581]
[1727435360092,0.79837295,2652.5,2652.4,5.49530581]
[1727435360382,0.00745018,2652.5,2652.4,5.49530581]
[1727435361176,0.79837295,2652.5,2652.2,6.77045]
[1727435361453,0.00745018,2652.3,2652.2,3.0]
[1727435361730,0.4519,2652.2,2651.9,3.77078]
[1727435361884,0.00745018,2652.1,2651.9,3.77078]
[1727435362084,0.79795046,2652.1,2651.7,11.87313]
[1727435362285,0.79050028,2652.1,2651.8,3.771]
[1727435364533,0.79050028,2652.1,2651.9,3.77076]
[1727435368580,0.79050028,2652.0,2651.9,3.77076]
[1727435368925,0.79050028,2652.1,2651.9,3.77076]
[1727435373463,0.79050028,2652.1,2652.0,3.77073]
[1727435375802,0.79050028,2652.1,2652.0,5.0824199]
[1727435375977,0.79795046,2652.2,2652.1,4.32059]
[1727435376175,0.79050028,2652.2,2652.1,4.39599411]
[1727435376389,1.19478425,2652.4,2652.2,3.77045]
[1727435376580,0.79076501,2652.3,2652.2,3.77045]
[1727435376793,1.1935822,2652.4,2652.3,3.77031]
[1727435377804,1.1935822,2652.4,2652.2,3.77045]
[1727435378010,0.79078557,2652.3,2652.2,3.77045]
[1727435378566,1.1935822,2652.4,2652.3,3.77031]
[1727435379173,0.79822201,2652.4,2652.3,4.87001565]
[1727435379676,0.79822201,2652.4,2652.3,1.09970565]
[1727435382347,0.79822201,2652.4,2652.3,4.87001565]
[1727435383146,0.00745018,2652.4,2652.3,4.87001565]
[1727435383435,0.79834943,2652.4,2652.3,4.87001565]
[1727435384259,0.00745018,2652.4,2652.3,4.87001565]
[1727435385154,0.79838354,2652.4,2652.3,4.87001565]
[1727435385314,0.00745018,2652.4,2652.3,4.87001565]
[1727435385520,1.1935822,2652.4,2652.3,4.87001565]
[1727435385844,1.1935822,2652.4,2652.3,1.09970565]
[1727435386141,1.1935822,2652.4,2652.2,3.77044]
[1727435386468,0.79103083,2652.3,2652.2,3.77044]
[1727435391373,1.1935822,2652.4,2652.2,3.77044]
[1727435392768,1.1935822,2652.4,2652.3,3.77031]
[1727435396388,1.1935822,2652.4,2652.2,3.77043]
[1727435396577,1.1935822,2652.4,2652.2,7.54081]
[1727435397027,1.1935822,2652.4,2652.2,3.77038]
[1727435397235,1.1935822,2652.4,2652.3,3.77031]
[1727435402362,1.1935822,2652.4,2652.3,6.85570553]
[1727435402568,0.00745018,2652.4,2652.3,6.85570553]
[1727435403057,0.79893019,2652.4,2652.3,6.85570553]
[1727435403262,0.79891351,2652.4,2652.3,6.85570553]
[1727435403463,0.79891351,2652.4,2652.3,7.97678178]
[1727435404077,0.79146333,2652.5,2652.3,7.97678178]
[1727435404278,1.18613202,2652.6,2652.4,3.77017]
[1727435404452,1.18613202,2652.6,2652.5,3.77002]
[1727435404648,1.18613202,2652.7,2652.6,3.76988]
[1727435404856,1.58499032,2652.8,2652.7,3.76974]
[1727435405288,0.00745018,2652.8,2652.7,3.76974]
[1727435405576,0.00745018,2652.8,2652.7,4.69039463]
[1727435405782,0.00745018,2652.8,2652.7,7.84467684]
[1727435405996,1.1943806,2653.0,2652.9,3.76945]
[1727435406278,0.79118112,2653.1,2653.0,3.76931]
[1727435406486,0.79118112,2653.1,2653.0,4.146255]
[1727435407079,0.79118112,2653.2,2653.1,3.76917]
[1727435407235,0.00745018,2653.3,2653.2,5.6968658]
[1727435407440,0.00745018,2653.3,2653.2,9.4658958]
[1727435419859,0.00745018,2653.3,2653.2,10.8121958]
[1727435420061,0.00745018,2653.8,2653.7,3.76832]
[1727435420302,1.24308112,2653.9,2653.7,3.76832]
[1727435420487,0.4519,2653.9,2653.7,3.76832]
[1727435420996,0.7986313,2654.1,2653.7,3.76832]
[1727435420997,1.2505313,2654.1,2653.7,3.76823]